bitfinex/quotes_ETHUSD_20250806
["timestamp","ask_amount","ask_price","bid_price","bid_amount"]
[1754516608667,7.19686634,3665.6,3665.4,0.4905]
[1754516608862,7.19686634,3665.6,3665.3,0.002]
[1754516609068,7.19686634,3665.6,3665.5,0.4905]
[1754516609366,7.44979938,3665.6,3665.5,0.4905]
[1754516612033,2.7281469,3665.5,3665.3,0.002]
[1754516612229,4.58393304,3665.4,3665.3,0.4997]
[1754516612433,4.58393304,3665.4,3665.3,0.002]
[1754516612731,8.32983715,3665.4,3665.3,0.002]
[1754516612936,5.60162195,3665.4,3665.3,0.002]
[1754516613138,8.32983715,3665.4,3665.3,0.002]
[1754516613877,5.60162195,3665.4,3665.3,0.002]
[1754516614173,4.58393304,3665.4,3665.3,0.002]
[1754516616662,7.58393304,3665.4,3665.3,0.002]
[1754516616841,10.31214824,3665.4,3665.3,0.002]
[1754516618278,10.31214824,3665.4,3665.3,0.4997]
[1754516619480,10.31214824,3665.4,3665.3,0.002]
[1754516621591,10.31214824,3665.4,3665.3,0.4997]
[1754516622648,7.58393304,3665.4,3665.3,0.4997]
[1754516625321,7.58393304,3665.4,3665.3,0.002]
[1754516625517,7.58393304,3665.4,3665.3,0.4997]
[1754516625686,7.58393304,3665.4,3665.3,0.9479]
[1754516626722,7.58470127,3665.4,3665.3,0.9479]
[1754516627922,10.31291647,3665.4,3665.3,0.4997]
[1754516630628,3.25370127,3665.4,3665.3,0.4997]
[1754516630833,10.30991647,3665.4,3665.3,0.002]
[1754516631216,10.30991647,3665.4,3665.3,0.4997]
[1754516633629,10.30991647,3665.4,3665.3,0.002]
[1754516633833,10.30991647,3665.4,3665.3,0.4997]
[1754516634327,12.0838014,3665.4,3665.3,0.002]
[1754516634509,12.2206014,3665.4,3665.3,0.002]
[1754516634831,11.51060013,3665.4,3665.3,0.4997]
[1754516635533,11.51060013,3665.4,3665.3,0.002]
[1754516640068,11.51060013,3665.4,3665.3,0.4997]
[1754516640833,11.51060013,3665.4,3665.3,0.002]
[1754516641049,11.96560013,3665.4,3665.3,0.002]
[1754516641256,2.72836407,3665.2,3665.1,1e-08]
[1754516641458,3.55,3664.9,3664.8,0.002]
[1754516641663,20.15416351,3664.9,3664.8,0.002]
[1754516641861,20.58196135,3664.9,3664.8,0.002]
[1754516642195,23.29522819,3664.9,3664.8,0.002]
[1754516642753,5.72881078,3664.6,3664.5,0.002]
[1754516642955,5.72881078,3664.6,3663.1,0.04]
[1754516642956,3.27903419,3664.3,3663.1,0.04]
[1754516643173,20.15461029,3664.3,3663.1,0.04]
[1754516643375,20.58240813,3664.3,3663.1,0.04]
[1754516643555,23.18642451,3664.3,3663.1,0.04]
[1754516644241,23.39208471,3664.3,3663.1,0.04]
[1754516645368,2.72966849,3663.5,3663.1,0.04]
[1754516645531,2.72977916,3663.3,3663.1,0.04]
[1754516645732,19.44129674,3663.4,3663.1,0.04]
[1754516645733,10.64665367,3663.2,3663.1,0.04]
[1754516646077,12.36137261,3663.2,3663.1,0.04]
[1754516647742,12.50295244,3663.2,3663.1,0.04]
[1754516651656,12.95145244,3663.2,3663.1,0.04]
[1754516652200,13.36465244,3663.2,3663.1,0.04]
[1754516653011,12.90965244,3663.2,3663.1,0.04]
[1754516653423,13.36465244,3663.2,3663.1,0.04]
[1754516655498,12.90965244,3663.2,3663.1,0.04]
[1754516656389,12.90965244,3663.2,3663.1,0.5316]
[1754516657114,0.4485,3663.2,3663.1,0.9781]
[1754516657279,2.72941397,3663.8,3663.1,3.70797536]
[1754516657479,0.8205,3664.1,3663.2,0.9381]
[1754516657679,2.60388384,3664.9,3663.3,0.9381]
[1754516657680,4.324,3664.0,3663.3,0.9381]
[1754516657887,4.324,3664.0,3663.9,2.72927654]
[1754516658093,4.324,3664.0,3663.9,0.4916]
[1754516658983,4.324,3664.0,3663.9,0.9381]
[1754516659186,4.324,3664.0,3663.9,3.98953434]
[1754516659786,2.72860625,3664.9,3664.2,2.72906706]
[1754516660021,4.323,3664.7,3664.3,0.9381]
[1754516660192,3.0,3664.6,3664.2,2.72906706]
[1754516660420,4.323,3664.5,3664.4,3.66705972]
[1754516661016,6.557,3665.2,3664.6,2.72879096]
[1754516661240,0.001,3664.9,3664.7,3.666836]
[1754516661435,4.322,3664.8,3664.6,2.72879079]
[1754516662027,4.322,3664.8,3664.7,0.9381]
[1754516662232,4.322,3664.8,3664.7,3.66683632]
[1754516662416,4.322,3664.8,3664.7,4.32008696]
[1754516662748,0.001,3664.9,3664.8,2.72866186]
[1754516662939,0.001,3664.9,3664.8,3.66676186]
[1754516663141,0.001,3664.9,3664.8,3.80356186]
[1754516663718,0.001,3664.9,3664.8,3.83084847]
[1754516663919,0.001,3664.9,3664.8,4.52484736]
[1754516666660,0.001,3664.9,3664.8,4.55213397]
[1754516667019,0.001,3664.9,3664.8,4.52484736]
[1754516677657,0.001,3664.9,3664.8,4.55213397]
[1754516678399,0.001,3664.9,3664.8,8.86713397]
[1754516678693,0.001,3664.9,3664.8,8.83984736]
[1754516681573,0.001,3665.3,3665.2,2.72836407]
[1754516681776,0.001,3665.3,3665.2,7.8881876]
[1754516682094,0.001,3665.3,3665.2,8.44700396]
[1754516682271,0.001,3665.3,3665.2,8.93000396]
[1754516688932,0.001,3665.5,3665.4,2.7282152]
[1754516689095,0.001,3665.5,3665.4,10.20329735]
[1754516689295,0.001,3665.5,3665.4,10.91889721]
[1754516689615,0.001,3665.5,3665.4,11.85219721]
[1754516690210,0.001,3665.5,3665.4,12.40219721]
[1754516695740,0.001,3666.6,3666.2,2.72761987]
[1754516696030,0.001,3666.6,3666.2,7.19889606]
[1754516696250,0.001,3666.6,3666.2,8.30887051]
[1754516700758,0.001,3666.6,3666.2,8.75817051]
[1754516700987,0.001,3666.6,3666.2,8.30887051]
[1754516701288,0.4314,3666.5,3666.2,3.51687051]
[1754516701494,0.4314,3666.5,3666.2,7.82287051]
[1754516701959,0.4314,3666.5,3666.2,3.51687051]
[1754516702155,0.001,3666.6,3666.2,10.82187051]
[1754516702379,1e-08,3666.4,3666.3,12.66411942]
[1754516702584,1e-08,3666.4,3666.3,17.32380492]
[1754516703194,1e-08,3666.4,3666.3,11.80153098]
[1754516703489,1e-08,3666.4,3666.3,7.49653098]
[1754516703691,1e-08,3666.4,3666.3,11.80153098]
[1754516703886,1e-08,3666.4,3666.3,6.99883098]
[1754516704059,1e-08,3666.4,3666.3,3.44883098]
[1754516704254,1e-08,3666.4,3666.3,2.72754548]
[1754516704255,0.43140001,3666.4,3666.3,2.72754548]
[1754516704456,1e-08,3666.4,3666.3,7.03254548]
[1754516705054,1e-08,3666.4,3666.3,7.03154548]
[1754516705260,1e-08,3666.4,3666.3,7.52924548]
[1754516706015,1e-08,3666.4,3666.3,7.03154548]
[1754516706193,0.43140001,3666.4,3666.2,0.136]
[1754516706503,0.43140001,3666.4,3664.6,6.553]
[1754516706504,2.72754548,3666.3,3664.6,6.553]
[1754516706721,0.4314,3666.2,3665.9,0.136]
[1754516707772,0.4314,3666.1,3666.0,2.72773858]
[1754516708015,0.43140001,3666.4,3666.3,2.72754548]
[1754516708311,1e-08,3666.4,3666.3,7.03054548]
[1754516708519,1e-08,3666.4,3666.3,8.07246683]
[1754516708717,1e-08,3666.4,3666.3,8.20846683]
[1754516709510,1e-08,3666.4,3666.3,7.16654548]
[1754516709719,0.4314,3669.4,3666.8,0.55]
[1754516709877,0.4314,3669.0,3667.6,3.55]
[1754516710074,0.4314,3669.0,3667.8,5.72643001]
[1754516710313,0.4314,3669.0,3667.9,4.303]
[1754516710619,0.4314,3669.0,3668.0,2.72626617]
[1754516710823,0.136,3668.6,3668.1,0.136]
[1754516711117,0.136,3668.6,3668.1,2.86220253]
[1754516711616,0.4314,3668.5,3668.1,2.86220253]
[1754516713209,0.4314,3668.5,3668.1,0.136]
[1754516714124,0.4314,3668.5,3668.1,2.86214437]
[1754516715647,0.4314,3668.5,3668.1,0.136]
[1754516715852,0.4314,3668.4,3668.1,0.136]
[1754516717634,0.136,3668.6,3668.1,0.136]
[1754516717819,0.4314,3668.5,3668.1,0.136]
[1754516718016,0.4314,3668.5,3668.0,2.72627784]
[1754516718270,0.4314,3668.5,3668.0,2.86227784]
[1754516719752,0.4314,3668.4,3668.0,2.86227784]
[1754516720314,0.136,3668.6,3668.0,2.86227784]
[1754516720553,0.4314,3668.3,3668.0,2.86227784]
[1754516720718,0.136,3668.6,3668.0,2.86227784]
[1754516720918,0.4314,3668.2,3668.0,2.86227784]
[1754516721116,0.4314,3668.2,3668.1,2.72620702]
[1754516721456,0.136,3668.6,3668.1,2.72620702]
[1754516721620,0.4314,3668.4,3668.1,2.72620702]
[1754516721821,0.4314,3668.3,3668.1,2.72620702]
[1754516722522,0.136,3668.6,3668.1,2.72620702]
[1754516722722,0.4314,3668.5,3668.1,2.72620702]
[1754516723418,0.136,3668.6,3668.2,2.72608903]
[1754516723630,2.07214,3668.6,3668.2,2.72608903]
[1754516727248,1.64074,3668.6,3668.2,2.72608903]
[1754516727968,0.4314,3668.5,3668.2,2.72608903]
[1754516728490,1.64074,3668.6,3668.2,2.72608903]
[1754516729060,2.07214,3668.6,3668.2,2.72608903]
[1754516731371,1.64074,3668.6,3668.2,2.72608903]
[1754516734592,1.64074,3668.6,3668.3,2.72604656]
[1754516735364,2.11284,3668.6,3668.3,2.72604656]
[1754516735693,1.64074,3668.6,3668.3,2.72604656]
[1754516736515,0.136,3668.6,3668.4,2.72597543]
[1754516736728,4.431,3668.6,3668.4,2.72597543]
[1754516737376,4.431,3668.6,3668.4,3.16067543]
[1754516737579,4.431,3668.6,3668.4,3.64407543]
[1754516738004,4.431,3668.6,3668.4,3.20937543]
[1754516738211,0.136,3668.6,3668.4,3.64407543]
[1754516738905,0.136,3668.6,3668.4,3.16067543]
[1754516739111,0.136,3668.6,3668.5,0.4834]
[1754516742417,0.136,3668.6,3668.5,3.20930977]
[1754516742593,0.136,3668.6,3668.5,0.4834]
[1754516742995,4.429,3668.6,3668.5,0.4834]
[1754516745018,4.429,3668.6,3668.5,3.20930977]
[1754516746303,4.293,3668.6,3668.5,3.20930977]
[1754516746504,4.293,3668.6,3668.5,3.64400977]
[1754516747108,0.136,3668.9,3668.5,3.64400977]
[1754516747313,4.292,3668.6,3668.5,2.72590977]
[1754516747701,4.292,3668.6,3668.5,3.20930977]
[1754516750324,0.136,3668.9,3668.5,3.20930977]
[1754516750498,4.291,3668.6,3668.5,3.20930977]
[1754516750700,4.291,3668.6,3668.5,2.72590977]
[1754516751288,4.291,3668.6,3668.5,3.20930977]
[1754516753727,0.136,3668.9,3668.6,2.72582118]
[1754516753906,4.29,3668.8,3668.6,3.20922118]
[1754516754106,4.29,3668.8,3668.7,0.4834]
[1754516754514,4.29,3668.8,3668.7,3.20916116]
[1754516755696,0.136,3669.1,3668.7,3.20916116]
[1754516756000,4.289,3669.0,3668.9,2.72561258]
[1754516756205,4.289,3669.0,3668.9,3.64371258]
[1754516756830,4.289,3669.0,3668.9,3.20901258]
[1754516757320,4.289,3669.0,3668.9,3.64371258]
[1754516758393,4.289,3669.0,3668.9,3.20901258]
[1754516758626,0.001,3669.2,3669.1,2.72546401]
[1754516759022,0.001,3669.2,3669.1,3.77956401]
[1754516762630,0.001,3669.2,3669.1,3.34486401]
[1754516762939,0.001,3669.2,3669.1,3.80436401]
[1754516764238,0.001,3669.2,3669.1,3.77206401]
[1754516764442,0.001,3669.2,3669.1,4.05029629]
[1754516764808,0.001,3669.2,3669.1,4.50979629]
[1754516770855,0.001,3669.2,3669.1,4.05029629]
[1754516771042,0.001,3669.2,3669.1,8.33429629]
[1754516771846,0.001,3669.2,3669.1,7.88319629]
[1754516772051,0.001,3669.2,3669.1,8.33429629]
[1754516773053,0.001,3669.2,3669.1,8.79379629]
[1754516773658,0.001,3669.2,3669.1,9.34379629]
[1754516773886,0.001,3669.2,3669.1,8.88429629]
[1754516775385,0.001,3669.2,3669.1,4.05029629]
[1754516775589,0.001,3669.2,3669.1,8.33229629]
[1754516775969,0.001,3669.2,3669.1,4.05029629]
[1754516776171,0.001,3669.2,3669.1,8.33229629]
[1754516777861,0.001,3669.2,3669.1,4.05029629]
[1754516778076,0.001,3669.2,3669.1,8.33229629]
[1754516778260,0.001,3669.2,3669.1,4.05029629]
[1754516778463,0.001,3669.2,3669.1,7.88019629]
[1754516778664,0.001,3669.2,3669.1,8.33129629]
[1754516780707,0.001,3669.2,3669.1,4.05029629]
[1754516780910,0.001,3669.2,3669.1,8.33029629]
[1754516781383,0.001,3669.2,3669.1,4.05029629]
[1754516781584,0.001,3669.2,3669.1,8.33029629]
[1754516781984,0.001,3669.2,3669.1,4.05029629]
[1754516782211,0.001,3669.2,3669.1,8.33029629]
[1754516782409,0.001,3669.2,3669.1,4.05029629]
[1754516782581,0.001,3669.2,3669.1,8.32929629]
[1754516784916,0.4535,3669.2,3668.7,7.00472955]
[1754516785111,0.4525,3669.1,3668.7,7.00472955]
[1754516785303,0.4525,3669.0,3668.8,2.72568687]
[1754516785503,0.001,3669.2,3668.8,2.72568687]
[1754516785822,0.4525,3668.9,3668.8,2.72568687]
[1754516786195,0.4525,3669.1,3668.9,2.72557239]
[1754516786380,0.4525,3669.0,3668.9,2.72557239]
[1754516787584,0.001,3669.2,3668.9,2.72557239]
[1754516787786,0.4535,3669.2,3668.9,2.72557239]
[1754516788010,0.4535,3669.2,3668.9,3.17667239]
[1754516788215,0.4535,3669.2,3668.9,2.72557239]
[1754516788443,0.001,3669.2,3668.9,2.72557239]
[1754516788651,0.001,3669.2,3669.0,0.4511]
[1754516788960,0.4525,3669.1,3668.9,2.72557239]
[1754516789454,0.001,3669.2,3668.9,2.72557239]
[1754516789614,0.4535,3669.2,3668.9,2.72557239]
[1754516790042,0.001,3669.2,3668.9,2.72557239]
[1754516790359,0.4525,3669.1,3668.9,2.72557239]
[1754516790851,0.4525,3669.1,3668.9,2.72757239]
[1754516791644,0.001,3669.2,3669.0,2.72553829]
[1754516792630,0.001,3669.2,3669.0,3.21253829]
[1754516793952,0.001,3669.2,3668.9,0.002]
[1754516794110,0.4553,3669.1,3668.9,0.002]
[1754516794739,0.5913,3669.0,3668.9,0.002]
[1754516796429,0.136,3669.0,3668.9,0.002]
[1754516800448,6.31683829,3669.0,3668.9,0.002]
[1754516805640,10.58983829,3669.0,3668.9,0.002]
[1754516807856,10.13453829,3669.0,3668.9,0.002]
[1754516808394,10.58983829,3669.0,3668.9,0.002]
[1754516810089,10.13453829,3669.0,3668.9,0.002]
[1754516810282,12.35811018,3669.0,3668.9,0.002]
[1754516811166,12.81341018,3669.0,3668.9,0.002]
[1754516812061,12.35811018,3669.0,3668.9,0.002]
[1754516815108,12.35811018,3669.0,3668.9,0.489]
[1754516815468,10.13453829,3669.0,3668.9,0.489]
[1754516817200,9.99853829,3669.0,3668.9,0.489]
[1754516817408,10.13453829,3669.0,3668.9,0.489]
[1754516818170,10.13453829,3669.0,3668.9,0.9501]
[1754516820294,10.13453829,3669.0,3668.9,0.489]
[1754516820593,10.13453829,3669.0,3668.9,0.9501]
[1754516820594,4.409,3669.0,3668.9,0.9501]
[1754516824896,4.409,3669.0,3668.9,0.489]
[1754516825069,4.266,3669.0,3668.9,0.9539]
[1754516827400,4.266,3669.0,3668.9,0.489]
[1754516827610,4.266,3669.0,3668.9,0.9539]
[1754516829282,4.266,3669.0,3668.9,0.4864]
[1754516829818,4.266,3669.0,3668.9,0.9513]
[1754516831215,0.001,3669.2,3668.9,1.31920117]
[1754516831420,4.265,3669.1,3669.0,0.9493]
[1754516843328,4.265,3669.1,3669.0,0.4844]
[1754516855244,4.265,3669.1,3669.0,0.4864]
[1754516872648,4.265,3669.1,3669.0,0.9324]
[1754516872959,0.001,3669.2,3669.1,2.72546401]
[1754516873158,0.001,3669.2,3669.1,3.37760498]
[1754516873465,0.001,3669.2,3669.1,4.28250498]
[1754516875347,0.001,3669.2,3669.1,4.30975962]
[1754516875867,0.001,3669.2,3669.1,4.28250498]
[1754516876232,0.001,3669.2,3669.1,4.30975962]
[1754516877245,0.001,3669.2,3669.1,8.53050498]
[1754516879666,0.001,3669.2,3669.1,9.08050498]
[1754516880638,0.001,3669.2,3669.1,9.21650498]
[1754516880939,0.001,3669.2,3669.1,12.21650498]
[1754516882074,0.001,3669.6,3669.5,10.24655665]
[1754516882266,0.001,3669.6,3669.5,17.49155665]
[1754516882570,0.001,3669.6,3669.5,18.56265665]
[1754516883273,0.001,3669.6,3669.5,19.11265665]
[1754516885696,0.001,3669.6,3669.5,7.34626691]
[1754516886007,0.001,3669.6,3669.5,11.6488243]
[1754516886148,0.001,3669.6,3669.5,12.1223243]
[1754516886479,0.001,3669.6,3669.5,12.5839243]
[1754516886843,0.001,3669.6,3669.5,7.4048243]
[1754516887043,0.001,3669.6,3669.5,11.6478243]
[1754516887363,0.001,3669.6,3669.5,8.6478243]
[1754516887871,0.001,3669.6,3669.5,4.8783243]
[1754516888075,0.001,3669.6,3669.5,9.5829243]
[1754516892156,0.001,3669.6,3669.5,9.1213243]
[1754516894081,0.001,3669.6,3669.5,9.1183243]
[1754516894482,0.001,3669.6,3669.5,4.8783243]
[1754516894691,0.001,3669.6,3669.5,9.1183243]
[1754516900282,0.001,3669.6,3669.5,9.5799243]
[1754516902298,0.4279,3671.6,3671.2,2.72383422]
[1754516902499,0.6814,3671.5,3671.3,0.136]
[1754516902801,0.6814,3671.4,3671.3,0.136]
[1754516902956,0.6814,3671.4,3671.3,2.85983079]
[1754516903154,0.2535,3671.7,3671.4,2.72371386]
[1754516903395,0.4279,3671.6,3671.4,2.72375293]
[1754516903770,0.4279,3671.6,3671.5,0.136]
[1754516904892,3.15150823,3671.6,3671.5,0.136]
[1754516905570,3.15150823,3671.6,3669.8,0.4735]
[1754516905571,2.72454767,3670.4,3669.8,0.4735]
[1754516905770,0.4279,3670.3,3669.9,4.236]
[1754516906003,0.4279,3670.3,3669.9,4.7095]
[1754516906163,0.4279,3670.3,3670.2,0.136]
[1754516906369,3.40569446,3670.7,3670.2,4.372]
[1754516906606,0.4279,3670.6,3670.2,4.372]
[1754516906769,0.4279,3670.6,3670.2,4.236]
[1754516906969,0.4279,3670.6,3670.5,0.136]
[1754516908005,2.72422505,3670.8,3670.5,0.136]
[1754516908370,0.4279,3670.6,3670.5,0.136]
[1754516911319,2.72422505,3670.8,3670.5,0.136]
[1754516911616,3.15452505,3670.8,3670.5,0.136]
[1754516912420,0.4303,3670.8,3670.5,0.136]
[1754516913368,2.86001001,3671.1,3670.5,0.136]
[1754516914305,0.136,3671.1,3670.5,2.86040027]
[1754516914701,2.85998161,3671.1,3670.5,2.86040027]
[1754516914900,3.88488853,3671.1,3670.5,0.136]
[1754516915121,3.40785768,3671.0,3670.5,0.136]
[1754516915478,0.4303,3670.9,3670.5,0.136]
[1754516915681,2.97755768,3671.0,3670.5,0.136]
[1754516915952,0.4303,3670.9,3670.5,0.136]
[1754516916412,0.4303,3670.8,3670.5,0.136]
[1754516919718,2.72405768,3671.0,3670.5,0.136]
[1754516919912,3.18235768,3671.0,3670.5,0.136]
[1754516920610,2.72405768,3671.0,3670.5,0.136]
[1754516920811,2.72413056,3670.9,3670.5,0.136]
[1754516921108,3.41031492,3671.0,3670.5,0.6013]
[1754516921281,2.72408391,3671.0,3670.6,0.4653]
[1754516921682,3.18238391,3671.0,3670.6,0.4653]
[1754516921883,3.18238391,3671.0,3670.5,0.136]
[1754516922112,3.18238391,3671.0,3670.5,0.6013]
[1754516923215,2.72408391,3671.0,3670.5,0.136]
[1754516923420,2.72408391,3671.0,3670.6,0.4653]
[1754516923655,2.72408391,3671.0,3670.7,0.4653]
[1754516924349,0.4583,3670.9,3670.5,0.6013]
[1754516924723,2.72408391,3671.0,3670.6,0.4653]
[1754516925252,2.86001087,3671.1,3670.5,2.86042327]
[1754516925552,2.72405927,3671.0,3670.5,0.136]
[1754516926145,0.136,3671.1,3670.6,0.4653]
[1754516926331,0.136,3671.1,3670.6,0.9246]
[1754516926531,2.72386299,3671.3,3670.7,2.7242686]
[1754516926748,2.85986299,3671.3,3670.8,0.6013]
[1754516926954,2.85986299,3671.3,3670.8,0.136]
[1754516927121,2.85986299,3671.3,3670.9,0.4653]
[1754516927335,2.85986299,3671.3,3671.0,0.9246]
[1754516927535,2.85986299,3671.3,3671.1,0.4653]
[1754516927941,2.85986299,3671.3,3670.8,0.136]
[1754516928161,2.85986299,3671.3,3670.9,0.4653]
[1754516928372,2.85986299,3671.3,3670.8,0.5953]
[1754516928569,2.85986299,3671.3,3670.8,0.136]
[1754516929158,2.85986299,3671.3,3670.9,0.4653]
[1754516929361,2.85986299,3671.3,3671.0,0.4653]
[1754516929876,2.85986299,3671.3,3670.8,0.136]
[1754516930039,2.72390918,3671.2,3670.8,0.136]
[1754516930243,3.18220918,3671.2,3670.8,0.6013]
[1754516930439,3.18220918,3671.2,3670.8,0.136]
[1754516930877,7.32241414,3673.6,3671.1,9.36523682]
[1754516931064,7.32241414,3673.6,3671.7,2.72353405]
[1754516931065,2.72265483,3672.9,3671.7,2.72353405]
[1754516931271,0.4583,3672.7,3671.7,3.27353405]
[1754516931570,4.228,3672.7,3671.7,4.19813405]
[1754516931872,4.228,3672.7,3671.7,5.31310962]
[1754516932367,0.4583,3672.8,3671.7,5.31310962]
[1754516932961,0.4583,3672.8,3671.7,5.34034496]
[1754516933160,2.72123972,3674.8,3671.7,8.34034496]
[1754516933359,4.227,3673.4,3672.1,3.27323738]
[1754516933544,4.227,3673.4,3672.1,7.52746975]
[1754516933746,4.227,3673.4,3672.1,9.49025772]
[1754516933946,0.4583,3673.6,3672.1,8.26325772]
[1754516934164,0.4583,3673.3,3672.1,8.26325772]
[1754516934345,0.4583,3673.3,3672.1,12.49025772]
[1754516934956,3.0,3674.1,3673.2,2.72239924]
[1754516934957,2.72195658,3673.9,3673.2,2.72239924]
[1754516935160,0.4583,3673.6,3672.9,2.72264423]
[1754516935372,0.4583,3673.6,3673.2,2.7224203]
[1754516935544,0.4583,3673.5,3673.2,2.7224203]
[1754516935742,3.43397642,3673.4,3672.7,2.72277045]
[1754516935998,0.34339764,3673.3,3672.7,2.7227855]
[1754516936284,0.2534,3673.2,3672.6,2.72281575]
[1754516936584,0.4583,3673.1,3672.6,2.72286663]
[1754516936949,0.4583,3673.0,3672.7,2.72277576]
[1754516937162,0.2534,3673.1,3672.7,2.72277576]
[1754516937363,0.4583,3672.9,3672.7,2.72277576]
[1754516937898,2.72213656,3673.6,3672.7,2.72277576]
[1754516937899,3.0,3674.4,3672.8,0.55]
[1754516938181,0.4583,3673.8,3673.5,2.7221874]
[1754516938545,0.4583,3673.8,3673.5,2.72213155]
[1754516938754,0.4583,3673.8,3673.4,2.72224884]
[1754516938965,0.4583,3673.7,3673.4,2.72224884]
[1754516939557,3.68303465,3674.0,3673.4,2.72224884]
[1754516939770,0.79080347,3673.9,3673.4,2.72224884]
[1754516940085,0.4583,3673.8,3673.3,2.72232135]
[1754516940561,0.4583,3673.8,3673.3,3.18762135]
[1754516940751,0.4583,3673.8,3673.4,2.72226245]
[1754516940950,0.2495,3674.0,3673.6,0.136]
[1754516941364,0.4691,3673.9,3673.6,0.136]
[1754516942525,0.2495,3674.0,3673.6,0.136]
[1754516942816,0.98271229,3674.0,3673.6,0.136]
[1754516943016,0.2495,3674.0,3673.6,0.136]
[1754516943202,0.2495,3674.0,3673.6,0.6065]
[1754516943531,0.2495,3674.0,3673.3,0.4418]
[1754516943532,0.2495,3674.0,3673.7,0.4705]
[1754516943697,0.2495,3674.0,3673.8,0.6065]
[1754516943883,0.2495,3674.0,3673.8,0.136]
[1754516944083,0.2495,3674.0,3673.8,0.6065]
[1754516944988,3.44446895,3673.9,3673.3,2.72232034]
[1754516945189,0.8384969,3673.8,3673.6,0.136]
[1754516945412,0.4691,3673.8,3673.6,0.136]
[1754516945619,0.2534,3673.9,3673.6,0.136]
[1754516945789,0.4691,3673.7,3673.6,0.136]
[1754516946514,0.3895,3673.9,3673.6,0.136]
[1754516946713,2.97135591,3674.0,3673.6,0.136]
[1754516947119,0.2495,3674.0,3673.6,0.136]
[1754516948016,0.2495,3674.0,3673.6,2.85812406]
[1754516948230,0.2495,3674.0,3673.6,3.32862406]
[1754516949622,0.2495,3674.0,3673.6,0.6065]
[1754516950121,0.2495,3674.0,3673.6,3.32861088]
[1754516950424,0.2495,3674.0,3673.7,0.4705]
[1754516950629,0.2495,3674.0,3673.6,0.136]
[1754516952684,0.2495,3674.0,3673.6,0.6065]
[1754516953426,0.2495,3674.0,3673.6,0.136]
[1754516953626,0.2495,3674.0,3673.6,0.6065]
[1754516954202,0.2495,3674.0,3673.6,3.32862335]
[1754516956329,0.2495,3674.0,3673.6,0.6065]
[1754516957225,2.72205133,3673.7,3673.6,0.136]
[1754516957430,0.136,3673.7,3673.1,0.136]
[1754516957633,0.8585,3673.7,3673.1,0.136]
[1754516958336,3.58060335,3673.7,3673.1,0.136]
[1754516958634,3.32720335,3673.7,3673.1,0.136]
[1754516958825,4.43736463,3673.7,3673.1,2.8584893]
[1754516959029,2.72213275,3673.6,3673.1,0.136]
[1754516959334,3.44463275,3673.6,3673.1,0.136]
[1754516959533,0.4691,3673.5,3673.1,0.136]
[1754516959693,0.4691,3673.4,3673.1,0.136]
[1754516960828,0.136,3673.2,3672.6,0.136]
[1754516961234,0.4691,3673.1,3672.6,2.85885869]
[1754516961530,2.72251669,3673.1,3672.6,0.136]
[1754516961696,4.22,3673.3,3672.1,0.4705]
[1754516961893,0.136,3672.9,3672.3,2.85904122]
[1754516962096,3.19186238,3672.8,3672.3,0.136]
[1754516962296,3.44529906,3672.7,3672.1,0.4705]
[1754516962504,0.136,3672.6,3672.1,0.6065]
[1754516962730,0.136,3672.6,3672.1,3.32969103]
[1754516962931,0.4691,3672.5,3672.1,3.32969103]
[1754516963144,0.4691,3672.5,3672.2,2.72315155]
[1754516963506,0.4691,3672.4,3672.1,0.136]
[1754516963829,0.136,3672.3,3671.8,7.07942671]
[1754516964032,0.4691,3672.2,3671.8,7.54992671]
[1754516964531,0.4691,3672.2,3671.9,0.4705]
[1754516964934,0.4691,3672.1,3671.8,0.136]
[1754516965104,0.6051,3672.1,3671.6,3.33009175]
[1754516965304,0.136,3672.1,3671.7,0.9123]
[1754516965503,0.136,3672.3,3672.0,2.72331154]
[1754516965699,0.136,3672.3,3672.1,0.4705]
[1754516965905,0.136,3672.3,3672.2,2.72316322]
[1754516966131,0.136,3672.7,3672.3,2.72308087]
[1754516966438,0.136,3672.7,3672.4,0.4705]
[1754516966640,2.72299372,3672.5,3671.8,7.41295892]
[1754516966805,0.136,3672.4,3671.8,7.54895892]
[1754516967208,0.136,3672.4,3671.9,2.72337696]
[1754516967822,0.136,3672.4,3671.9,3.19387696]
[1754516968002,4.22,3672.8,3672.0,0.4705]
[1754516968206,0.136,3672.5,3672.0,1.0483]
[1754516968408,0.136,3672.5,3672.1,3.63548899]
[1754516968718,0.136,3672.5,3672.2,3.63545501]
[1754516968917,0.136,3672.5,3672.2,2.72315501]
[1754516969117,0.136,3672.5,3672.3,0.9123]
[1754516969519,0.136,3672.5,3672.4,0.4705]
[1754516970005,0.136,3672.5,3672.0,2.85929903]
[1754516970206,3.3280533,3672.5,3672.0,0.136]
[1754516970542,3.3280533,3672.5,3672.1,0.4705]
[1754516970716,0.136,3672.5,3672.2,0.4589]
[1754516971037,2.85894851,3672.5,3672.0,0.136]
[1754516971247,2.85894851,3672.5,3672.0,0.5949]
[1754516972138,2.85894851,3672.5,3672.1,0.4589]
[1754516973060,0.136,3672.5,3672.1,0.4589]
[1754516973356,0.136,3672.5,3672.1,3.1821256]
[1754516973577,0.136,3672.5,3672.1,3.6210256]
[1754516973848,0.136,3672.5,3672.2,0.4589]
[1754516974345,0.136,3672.5,3672.3,0.4589]
[1754516975618,0.136,3672.5,3672.0,0.136]
[1754516975820,0.4281,3672.4,3672.0,0.5949]
[1754516976011,0.4281,3672.3,3671.8,3.18231166]